fUSD/lending_fUSD_20240823
["ID","MTS","AMOUNT","RATE_DAILY","PERIOD"]
[335632266,1724393475243,-809.66,0.00010999,2]
[335632267,1724393475252,-500.0,0.00010999,2]
[335632268,1724393475261,-809.66,0.00010999,2]
[335632269,1724393475270,-500.0,0.00010999,2]
[335632270,1724393475279,-809.66,0.00010999,2]
[335632271,1724393475288,-151.0,0.00010999,2]
[335632272,1724393475297,-500.0,0.00010999,2]
[335632273,1724393475306,-809.73830244,0.00010999,2]
[335632274,1724393475315,-151.0,0.00010999,2]
[335632275,1724393475324,-500.0,0.00010999,2]
[335632276,1724393475333,-151.0,0.00010999,2]
[335632277,1724393475342,-500.0,0.00010999,2]
[335632278,1724393475351,-500.0,0.00010999,2]
[335632279,1724393475361,-151.0,0.00010999,2]
[335632280,1724393475369,-500.0,0.00010999,2]
[335632281,1724393475379,-500.0,0.00010999,2]
[335632282,1724393475388,-500.0,0.00010999,2]
[335632283,1724393475397,-500.0,0.00010999,2]
[335632284,1724393475406,-500.0,0.00010999,2]
[335632285,1724393475416,-500.0,0.00010999,2]
[335632286,1724393475426,-500.0,0.00010999,2]
[335632287,1724393475436,-500.0,0.00010999,2]
[335632288,1724393475445,-500.0,0.00010999,2]
[335632289,1724393475456,-245.00752221,0.00010999,2]
[335632290,1724393475465,-168.896639,0.00010999,2]
[335632291,1724393475474,-168.896639,0.00010999,2]
[335632292,1724393475484,-168.896639,0.00010999,2]
[335632293,1724393475495,-168.896639,0.00010999,2]
[335632294,1724393475506,-168.896639,0.00010999,2]
[335632295,1724393475515,-168.896639,0.00010999,2]
[335632296,1724393475524,-168.896639,0.00010999,2]
[335632297,1724393475533,-168.896639,0.00010999,2]
[335632298,1724393475542,-500.0,0.00010999,2]
[335632299,1724393475551,-500.0,0.00010999,2]
[335632300,1724393475560,-500.0,0.00010999,2]
[335632301,1724393475569,-168.896639,0.00010999,2]
[335632302,1724393475711,-500.0,0.00010999,2]
[335632303,1724393475736,-500.0,0.00010999,2]
[335632304,1724393475746,-168.896639,0.00010999,2]
[335632305,1724393475756,-500.0,0.00010999,2]
[335632306,1724393475765,-500.0,0.00010999,2]
[335632307,1724393475775,-500.0,0.00010999,2]
[335632308,1724393475784,-500.0,0.00010999,2]
[335632309,1724393475793,-500.0,0.00010999,2]
[335632310,1724393475802,-500.0,0.00010999,2]
[335632311,1724393475812,-500.0,0.00010999,2]
[335632312,1724393475821,-637.47090773,0.00010999,2]
[335632313,1724393475831,-500.0,0.00010999,2]
[335632314,1724393475840,-500.0,0.00010999,2]
[335632315,1724393475849,-500.0,0.00010999,2]
[335632316,1724393475859,-500.0,0.00010999,2]
[335632317,1724393475868,-500.0,0.00010999,2]
[335632318,1724393475877,-500.0,0.00010999,2]
[335632319,1724393475887,-500.0,0.00010999,2]
[335632320,1724393475896,-500.0,0.00010999,2]
[335632321,1724393475905,-500.0,0.00010999,2]
[335632322,1724393475914,-500.0,0.00010999,2]
[335632323,1724393475924,-553.09954588,0.00010999,2]
[335632324,1724393475933,-151.0,0.00010999,2]
[335632325,1724393475943,-228.44612,0.00010999,2]
[335632326,1724393475952,-500.0,0.00010999,2]
[335632327,1724393475962,-500.0,0.00010999,2]
[335632328,1724393475972,-500.0,0.00010999,2]
[335632329,1724393475983,-500.0,0.00010999,2]
[335632330,1724393475994,-500.0,0.00010999,2]
[335632331,1724393476004,-500.0,0.00010999,2]
[335632332,1724393476014,-500.0,0.00010999,2]
[335632333,1724393476024,-500.0,0.00010999,2]
[335632334,1724393476034,-500.0,0.00010999,2]
[335632335,1724393476043,-380.61322778,0.00010999,2]
[335632336,1724393476053,-649.89,0.00010999,2]
[335632337,1724393476062,-649.89,0.00010999,2]
[335632338,1724393476071,-649.89,0.00010999,2]
[335632339,1724393476081,-649.89,0.00010999,2]
[335632340,1724393476091,-649.89,0.00010999,2]
[335632341,1724393476100,-649.89,0.00010999,2]
[335632342,1724393476109,-1004.81,0.00010999,2]
[335632343,1724393476119,-649.89,0.00010999,2]
[335632344,1724393476128,-1004.81,0.00010999,2]
[335632345,1724393476138,-649.89,0.00010999,2]
[335632346,1724393476147,-1004.81,0.00010999,2]
[335632347,1724393476157,-649.89,0.00010999,2]
[335632348,1724393476166,-1004.81,0.00010999,2]
[335632349,1724393476175,-649.89,0.00010999,2]
[335632350,1724393476185,-1004.81,0.00010999,2]
[335632351,1724393476194,-649.89,0.00010999,2]
[335632352,1724393476204,-1004.81,0.00010999,2]
[335632353,1724393476213,-649.89,0.00010999,2]
[335632354,1724393476222,-1004.81,0.00010999,2]
[335632355,1724393476231,-649.89,0.00010999,2]
[335632356,1724393476241,-1004.81,0.00010999,2]
[335632357,1724393476252,-649.89,0.00010999,2]
[335632358,1724393476270,-1004.81,0.00010999,2]
[335632359,1724393476279,-649.89,0.00010999,2]
[335632360,1724393476288,-1004.81,0.00010999,2]
[335632361,1724393476297,-649.89,0.00010999,2]
[335632362,1724393476307,-1004.81,0.00010999,2]
[335632363,1724393476317,-649.89,0.00010999,2]
[335632364,1724393476326,-1004.81,0.00010999,2]
[335632365,1724393476335,-650.04608149,0.00010999,2]
[335632366,1724393476345,-1004.81,0.00010999,2]
[335632367,1724393476355,-1004.81,0.00010999,2]
[335632368,1724393476364,-1004.81,0.00010999,2]
[335632369,1724393476373,-1004.81,0.00010999,2]
[335632370,1724393476382,-1004.81,0.00010999,2]
[335632371,1724393476391,-1004.91552695,0.00010999,2]
[335632372,1724393476400,-151.0,0.00010999,2]
[335632373,1724393476410,-151.0,0.00010999,2]
[335632374,1724393476419,-151.0,0.00010999,2]
[335632375,1724393476428,-151.0,0.00010999,2]
[335632376,1724393476436,-151.0,0.00010999,2]
[335632377,1724393476445,-500.0,0.00010999,2]
[335632378,1724393476455,-890.28301668,0.00010999,2]
[335632379,1724393476463,-151.0,0.00010999,2]
[335632380,1724393476473,-500.0,0.00010999,2]
[335632381,1724393476483,-151.0,0.00010999,2]
[335632382,1724393476503,-235.751635,0.00010999,2]
[335632383,1724393476512,-500.0,0.00010999,2]
[335632384,1724393476521,-499.20921331,0.00010999,2]
[335632385,1724393476532,-500.0,0.00010999,2]
[335632386,1724393476542,-500.0,0.00010999,2]
[335632387,1724393476555,-500.0,0.00010999,2]
[335632388,1724393476564,-500.0,0.00010999,2]
[335632389,1724393476574,-500.0,0.00010999,2]
[335632390,1724393476584,-500.0,0.00010999,2]
[335632391,1724393476594,-500.0,0.00010999,2]
[335632392,1724393476604,-500.0,0.00010999,2]
[335632393,1724393476613,-500.0,0.00010999,2]
[335632394,1724393476622,-500.0,0.00010999,2]
[335632395,1724393476631,-500.0,0.00010999,2]
[335632396,1724393476641,-500.0,0.00010999,2]
[335632397,1724393476650,-450.38044952,0.00010999,2]
[335632398,1724393476659,-459.90783,0.00010999,2]
[335632399,1724393476670,-2886.36,0.00010999,2]
[335632400,1724393476679,-2886.36,0.00010999,2]
[335632401,1724393476688,-2886.36,0.00010999,2]
[335632402,1724393476698,-2886.36,0.00010999,2]
[335632403,1724393476708,-1294.66,0.00010999,2]
[335632404,1724393476718,-2886.36,0.00010999,2]
[335632405,1724393476727,-1294.66,0.00010999,2]
[335632406,1724393476737,-2886.36,0.00010999,2]
[335632407,1724393476748,-1294.66,0.00010999,2]
[335632408,1724393476758,-2886.36,0.00010999,2]
[335632409,1724393476767,-1294.66,0.00010999,2]
[335632410,1724393476776,-2886.37,0.00010999,2]
[335632411,1724393476785,-1294.66,0.00010999,2]
[335632412,1724393476794,-1294.66,0.00010999,2]
[335632413,1724393476803,-1294.66,0.00010999,2]
[335632414,1724393476812,-1294.66,0.00010999,2]
[335632415,1724393476822,-500.0,0.00010999,2]
[335632416,1724393476831,-1294.66,0.00010999,2]
[335632417,1724393476841,-500.0,0.00010999,2]
[335632418,1724393476852,-1294.66,0.00010999,2]
[335632419,1724393476863,-500.0,0.00010999,2]
[335632420,1724393476874,-1294.66,0.00010999,2]
[335632421,1724393476885,-1294.66,0.00010999,2]
[335632422,1724393476895,-500.0,0.00010999,2]
[335632423,1724393476906,-500.0,0.00010999,2]
[335632424,1724393476916,-1294.66,0.00010999,2]
[335632425,1724393476928,-500.0,0.00010999,2]
[335632426,1724393476938,-1294.66,0.00010999,2]
[335632427,1724393476949,-500.0,0.00010999,2]
[335632428,1724393476959,-1294.66,0.00010999,2]
[335632429,1724393476969,-500.0,0.00010999,2]
[335632430,1724393476980,-1294.66,0.00010999,2]
[335632431,1724393476992,-500.0,0.00010999,2]
[335632432,1724393477001,-1294.66,0.00010999,2]
[335632433,1724393477010,-152.36026769,0.00010999,2]
[335632434,1724393477019,-1294.75439011,0.00010999,2]
[335632435,1724393477028,-648.94549875,0.00010999,2]
[335632436,1724393477037,-681.56,0.00010999,2]
[335632437,1724393477046,-681.56,0.00010999,2]
[335632438,1724393477056,-681.56,0.00010999,2]
[335632439,1724393477065,-681.56,0.00010999,2]
[335632440,1724393477075,-681.56,0.00010999,2]
[335632441,1724393477084,-681.56,0.00010999,2]
[335632442,1724393477093,-681.56,0.00010999,2]
[335632443,1724393477102,-681.68,0.00010999,2]
[335632444,1724393477111,-527645.7818436,0.00011,2]
[335632445,1724393477399,-12386.30117644,0.00011,2]
[335632446,1724393477410,-709.17,0.00011,2]
[335632447,1724393477423,-11472.72054191,0.00011,2]
[335632448,1724393477434,-1423.09828711,0.00011,2]
[335632449,1724393477448,-716.30002,0.00011,2]
[335632450,1724393477460,-1098.75051472,0.00011,2]
[335632451,1724393477470,-412.1753019,0.00011,2]
[335632452,1724393477625,-179.29712103,0.000109,2]
[335632453,1724393477635,-151.0,0.00010999,2]
[335632454,1724393477643,-151.0,0.00010999,2]
[335632455,1724393477652,-151.0,0.00010999,2]
[335632456,1724393477662,-151.0,0.00010999,2]
[335632457,1724393477670,-151.0,0.00010999,2]
[335632458,1724393477680,-406.50287897,0.00011,2]
[335632459,1724393477690,-2464.82687053,0.00011,2]
[335632460,1724393477701,-2064.39225517,0.00011,2]
[335632461,1724393477712,-1462.76416002,0.00011,2]
[335632462,1724393477722,-457.5042121,0.00011,2]
[335632463,1724393477733,-547.191,0.00011,2]
[335632464,1724393477743,-13413.68580089,0.00011,2]
[335632465,1724393477754,-1313.87865291,0.00011,2]
[335632466,1724393477768,-285.60453231,0.00011,2]
[335632467,1724393477778,-1368.13987853,0.00011,2]
[335632468,1724393477798,-49420.92618351,0.00011,2]
[335632469,1724393477823,-3678.56594504,0.00011,2]
[335632470,1724393477834,-442.82396974,0.00011,2]
[335632471,1724393477844,-376.58731798,0.00011,2]
[335632472,1724393477864,-14999.88000451,0.00011,2]
[335632473,1724393477875,-17813.38405667,0.00011,2]
[335632474,1724393477887,-470.08,0.00011,2]
[335632475,1724393477905,-9673.94992461,0.00011,2]
[335632476,1724393477918,-1000.0,0.00011,2]
[335632477,1724393477935,-671.05,0.00011,2]
[335632478,1724393477947,-891.94150928,0.00011,2]
[335632479,1724393477957,-335.97564,0.00011,2]
[335632480,1724393477968,-16344.51668327,0.00011,2]
[335632481,1724393477979,-354.60376391,0.00011,2]
[335632482,1724393555705,375.19,8.327e-05,2]
[335632483,1724393687921,534.96907674,9.944e-05,2]
[335632484,1724393694807,200.0,9.963e-05,2]
[335632486,1724393876414,257.98,9.934e-05,2]
[335632489,1724393899068,663.61,9.925e-05,2]
[335632492,1724393917920,22084.75,9.919e-05,2]
[335632495,1724394005508,3692.07,9.906e-05,2]
[335632496,1724394033387,250.0,9.915e-05,2]
[335632498,1724394076152,356.43,8.219e-05,2]
[335632499,1724394106370,512.0,9.921e-05,2]
[335632500,1724394111403,155.39645058,9.962e-05,2]
[335632501,1724394141119,500.0,9.929e-05,2]
[335632502,1724394199752,476.74,9.928e-05,2]
[335632504,1724394273493,195.07,9.912e-05,2]
[335632512,1724394402527,331.8,9.881e-05,2]
[335632514,1724394411591,1138.22789575,0.00010009,2]
[335632543,1724394499889,1263.98569466,0.00010009,2]
[335632544,1724394509873,5727.70877493,0.00010009,2]
[335632545,1724394509917,250.0,9.874e-05,2]
[335632547,1724394534439,199173.0,0.00027,120]
[335632548,1724394548235,164.57212012,0.00010009,2]
[335632549,1724394551709,11324.03,9.976e-05,2]
[335632578,1724394571347,1276.46550139,0.00010009,2]
[335632581,1724394579330,4323.02748956,0.00010009,2]
[335632588,1724394590816,155.0,0.00010009,2]
[335632592,1724394619597,341.25138439,0.00010009,4]
[335632599,1724394632434,-187.21394844,0.00010026,2]
[335632600,1724394632443,-172.18,0.00010074,2]
[335632601,1724394632453,-500.0,0.00010164,2]
[335632602,1724394632462,-500.0,0.00010164,2]
[335632603,1724394632472,-488.0,0.00010217,2]
[335632604,1724394632481,-687.72110596,0.00010566,2]
[335632605,1724394632490,-2500.0,0.0001068,2]
[335632606,1724394632499,-150.99,0.00010699,2]
[335632607,1724394632509,-300.0,0.00010699,2]
[335632608,1724394632518,-2144.51516389,0.00010699,2]
[335632609,1724394632527,-895.19865544,0.00010699,2]
[335632610,1724394632536,-426.87,0.000107,2]
[335632611,1724394632545,-152.62,0.000107,2]
[335632612,1724394632554,-530.62,0.000107,2]
[335632613,1724394632564,-558.15,0.000107,2]
[335632614,1724394632573,-983.71,0.000107,2]
[335632615,1724394632582,-150.0,0.000107,2]
[335632616,1724394632591,-299.99,0.000107,2]
[335632617,1724394632601,-2500.0,0.000107,2]
[335632619,1724394632610,-1461.13,0.00010713,2]
[335632621,1724394632620,-150.0,0.00010779,2]
[335632623,1724394632629,-3468.94120013,0.0001078,2]
[335632625,1724394632640,-255.97559429,0.0001078,2]
[335632627,1724394632651,-5567.81518432,0.0001078,2]
[335632630,1724394632663,-575.83046247,0.0001078,2]
[335632633,1724394632681,-5337.14817572,0.0001078,2]
[335632655,1724394637374,338.6,8.219e-05,2]
[335632656,1724394638365,-338.6,0.00010475,2]
[335632657,1724394638375,-262.91186436,0.0001078,2]
[335632658,1724394638399,-858.43791186,0.0001078,2]
[335632659,1724394638530,-392.67304101,0.0001078,2]
[335632660,1724394638611,-1925.01146182,0.0001078,2]
[335632661,1724394638620,-4540.49,0.00010789,2]
[335632662,1724394638631,-1000.0,0.00010799,2]
[335632663,1724394638642,-211.65817651,0.00010799,2]
[335632664,1724394638653,-346.3498,0.000108,2]
[335632665,1724394638663,-155.96653042,0.000108,2]
[335632666,1724394638673,-9176.01450039,0.000108,2]
[335632667,1724394638694,-1858.427974,0.000108,2]
[335632827,1724394640496,-505.19267829,0.000108,2]
[335632837,1724394640583,-514.63207778,0.000108,2]
[335632839,1724394640595,-5590.95131345,0.000108,2]
[335632858,1724394640765,-996.41174141,0.000108,2]
[335632867,1724394640852,-1736.41306025,0.000108,2]
[335632870,1724394640865,-2054.96527202,0.000108,2]
[335632991,1724394643443,-590.4,0.00010042,2]
[335632992,1724394643452,-545.69790843,0.000108,2]
[335632993,1724394643857,-294.14994472,0.000108,2]
[335632994,1724394643869,-1848.28689354,0.000108,2]
[335632995,1724394643888,-365.20389755,0.000108,2]
[335632996,1724394643912,-3805.80185951,0.000108,2]
[335632997,1724394643937,-427.02085971,0.000108,2]
[335632998,1724394643948,-276.639247,0.000108,2]
[335633009,1724394646523,-4283.87288149,0.000108,2]
[335633010,1724394646536,-2309.71229046,0.000108,2]
[335633011,1724394646546,-426.87,0.000108,2]
[335633012,1724394646556,-150.0,0.000108,2]
[335633013,1724394646566,-426.87,0.000108,2]
[335633014,1724394646576,-150.0,0.000108,2]
[335633015,1724394646585,-424.87,0.000108,2]
[335633016,1724394646595,-401.88865473,0.000108,2]
[335633017,1724394646604,-1030.0,0.000108,2]
[335633018,1724394646614,-155.0,0.00010852,2]
[335633019,1724394646623,-600.79792946,0.00010861,2]
[335633020,1724394646633,-653.58446608,0.00010862,2]
[335633021,1724394646642,-485.22914892,0.00010862,2]
[335633022,1724394646652,-392.67304101,0.00010888,2]
[335633023,1724394646662,-255.66875094,0.00010888,2]
[335633024,1724394646672,-380.72044543,0.00010888,2]
[335633025,1724394646682,-330.25656643,0.00010888,2]
[335633026,1724394646691,-211.08016593,0.00010888,2]
[335633027,1724394646701,-255.21992957,0.00010888,2]
[335633028,1724394646710,-875.46374,0.0001089,2]
[335633029,1724394646721,-159.62357463,0.0001089,2]
[335633030,1724394646731,-218.92791442,0.0001089,2]
[335633031,1724394646740,-357.4813523,0.0001089,2]
[335633032,1724394646749,-236.36319912,0.0001089,2]
[335633033,1724394646759,-179.86122976,0.0001089,2]
[335633034,1724394646768,-155.0,0.0001089,2]
[335633035,1724394646777,-203.42899612,0.0001089,2]
[335633036,1724394646788,-155.76156069,0.0001089,2]
[335633037,1724394646797,-172.70431108,0.00010896,2]
[335633038,1724394646807,-4276.719,0.00010897,2]
[335633039,1724394646817,-12159.5233,0.00010897,2]
[335633040,1724394646826,-25531.3787,0.00010898,2]
[335633041,1724394646835,-166.2556,0.00010898,2]
[335633042,1724394646844,-169.12045875,0.00010899,2]
[335633043,1724394646854,-183.21981505,0.00010899,2]
[335633044,1724394646866,-225.61436308,0.00010899,2]
[335633045,1724394646878,-417.62580923,0.00010899,2]
[335633046,1724394646888,-236.99180348,0.00010899,2]
[335633047,1724394646898,-432.5166998,0.00010899,2]
[335633048,1724394646908,-183.21981505,0.000109,2]
[335633049,1724394646918,-9.97354566,0.000109,2]
[335633050,1724394646936,-4643.55379647,0.000109,2]
[335633052,1724394781713,6189.0,0.0001,2]
[335633054,1724394831612,340.92304231,0.0001,4]
[335633055,1724394834118,394.98456059,0.0001,2]
[335633061,1724394990529,713.29210228,9.933e-05,2]
[335633062,1724395018254,500.0,0.0001,2]
[335633067,1724395096572,172.18,9.977e-05,2]
[335633238,1724395137712,-396661.1812606,0.00025,60]
[335633239,1724395137738,-1800.0,0.00025,60]
[335633240,1724395137763,-150.48836,0.00025,60]
[335633241,1724395148275,8598.88,9.972e-05,2]
[335633242,1724395164172,527.68,9.981e-05,2]
[335633243,1724395197938,1050.0,0.0001,2]
[335633244,1724395199355,353.37,8.219e-05,2]
[335633337,1724395247363,156.33,9.972e-05,2]
[335633338,1724395339792,200.0,9.972e-05,2]
[335633339,1724395418857,535.234653,0.00010009,2]
[335633340,1724395440834,474.75,9.979e-05,2]
[335633341,1724395450048,155.0,0.00010009,2]
[335633342,1724395469215,507.7,0.0001001,2]
[335633344,1724395515307,250.0,9.974e-05,2]
[335633345,1724395518420,155.0,0.00010009,2]
[335633348,1724395540694,4438.67,9.995e-05,2]
[335633351,1724395608069,19810.73558194,0.0001,2]
[335633353,1724395630017,150.0,9.888e-05,2]
[335633576,1724395666536,577.85,9.972e-05,2]
[335633577,1724395704683,335.7,8.219e-05,2]
[335633643,1724395800883,237.65,9.986e-05,2]
[335633653,1724395831654,-936.75169288,0.00010026,2]
[335633654,1724395831664,-291.17202967,0.00010097,2]
[335633655,1724395831675,-162.35,0.00010134,2]
[335633656,1724395831685,-500.0,0.00010164,2]
[335633657,1724395831695,-500.0,0.00010164,2]
[335633658,1724395831705,-150.0,0.00010438,2]
[335633659,1724395831716,-300.0,0.00010441,2]
[335633660,1724395831725,-300.0,0.00010441,2]
[335633661,1724395831736,-10000.0,0.00010442,2]
[335633662,1724395831746,-155.0,0.00010471,2]
[335633663,1724395831756,-155.0,0.00010471,2]
[335633664,1724395831766,-335.7,0.00010477,2]
[335633665,1724395831776,-270.58164358,0.00010505,2]
[335633666,1724395831786,-1725.0,0.00010699,2]
[335633667,1724395831796,-883.25653,0.0001079,2]
[335633668,1724395831806,-155.96653042,0.000108,2]
[335633669,1724395831816,-150.0,0.000108,2]
[335633670,1724395831827,-8151.15132475,0.000108,2]
[335633671,1724395831837,-687.72110596,0.00010862,2]
[335633672,1724395831848,-380.20373503,0.00010862,2]
[335633673,1724395831858,-628.20735706,0.00010888,2]
[335633674,1724395831868,-150.0,0.00010889,2]
[335633675,1724395831878,-152.79080492,0.0001089,2]
[335633676,1724395831888,-7962.46317949,0.0001089,2]
[335633677,1724395831900,-349.31179477,0.0001089,2]
[335633784,1724395837781,-155.0,0.00010471,2]
[335633785,1724395837791,-3432.86341073,0.0001089,2]
[335633786,1724395837800,-73700.795,0.0001089,2]
[335633787,1724395837810,-7500.0,0.0001089,2]
[335633788,1724395837820,-1641.32455641,0.000109,2]
[335633789,1724395837832,-1174.63093345,0.000109,2]
[335633790,1724395838001,-2692.24800914,0.000109,2]
[335633791,1724395838010,-150.0,0.000109,2]
[335633792,1724395838019,-150.0,0.000109,2]
[335633793,1724395838029,-150.0,0.000109,2]
[335633794,1724395838039,-150.0,0.000109,2]
[335633796,1724395838048,-150.0,0.000109,2]
[335633798,1724395838058,-940.13309138,0.000109,2]
[335633800,1724395838069,-8293.4830531,0.000109,2]
[335633802,1724395838079,-211.55324508,0.000109,2]
[335633804,1724395838088,-200.85783565,0.000109,2]
[335633806,1724395838107,-152.31,0.0001098,2]
[335633808,1724395838116,-928.502,0.00010981,2]
[335633810,1724395838125,-767.0,0.00010981,2]
[335633812,1724395838135,-3734.489,0.00010981,2]
[335633814,1724395838145,-5848.0,0.00010981,2]
[335633816,1724395838154,-21782.0,0.00010981,2]
[335633818,1724395838166,-1073.0,0.00010981,2]
[335633820,1724395838175,-152.86473438,0.00010987,2]
[335633822,1724395838185,-500.0,0.00010988,2]
[335633824,1724395838195,-500.0,0.00010988,2]
[335633826,1724395838205,-2448.27,0.00010988,2]
[335633828,1724395838215,-2470.15,0.00010988,2]
[335633830,1724395838225,-826.2,0.00010988,2]
[335633832,1724395838235,-500.0,0.00010988,2]
[335633834,1724395838245,-500.0,0.00010989,2]
[335633836,1724395838255,-500.0,0.00010989,2]
[335633838,1724395838265,-500.0,0.00010989,2]
[335633840,1724395838275,-500.0,0.00010989,2]
[335633842,1724395838284,-500.0,0.00010989,2]
[335633844,1724395838294,-500.0,0.00010989,2]
[335633846,1724395838303,-500.0,0.00010989,2]
[335633848,1724395838312,-500.0,0.00010989,2]
[335633850,1724395838321,-500.0,0.00010989,2]
[335633852,1724395838330,-450.89163342,0.00010989,2]
[335634004,1724395839800,-49.10836658,0.00010989,2]
[335634006,1724395839810,-500.0,0.00010989,2]
[335634008,1724395839819,-373.81486306,0.00010989,2]
[335634021,1724395839934,-126.18513694,0.00010989,2]
[335634022,1724395839943,-735.91,0.00010989,2]
[335634023,1724395839952,-479.3797253,0.00010989,2]
[335634451,1724395844179,-301.616,0.00010988,2]
[335634453,1724395844191,-822.33658662,0.00010988,2]
[335634455,1724395844202,-4007.49939115,0.00010988,2]
[335634456,1724395844341,-1273.32780051,0.00010988,2]
[335634457,1724395844356,-840.64392545,0.00010988,2]
[335634458,1724395844372,-3082.32537501,0.00010988,2]
[335634602,1724395845701,-2495.4771356,0.00010988,2]
[335634834,1724395848187,-7196.26428375,0.00010988,2]
[335634836,1724395848197,-256.5302747,0.00010989,2]
[335634838,1724395848207,-735.91,0.00010989,2]
[335634840,1724395848217,-1116.3,0.00010989,2]
[335634842,1724395848227,-1116.3,0.00010989,2]
[335634844,1724395848236,-1116.3,0.00010989,2]
[335634845,1724395848246,-1815.8,0.00010989,2]
[335634847,1724395848255,-1815.8,0.00010989,2]
[335634849,1724395848265,-1815.8,0.00010989,2]
[335634851,1724395848275,-500.0,0.00010989,2]
[335634853,1724395848285,-500.0,0.00010989,2]
[335634855,1724395848294,-500.0,0.00010989,2]
[335634856,1724395848304,-500.0,0.00010989,2]
[335634858,1724395848313,-500.0,0.00010989,2]
[335634860,1724395848323,-500.0,0.00010989,2]
[335634861,1724395848332,-816.72,0.00010989,2]
[335634863,1724395848342,-816.72,0.00010989,2]
[335634865,1724395848352,-816.72,0.00010989,2]
[335634866,1724395848370,-500.0,0.00010989,2]
[335634868,1724395848380,-500.0,0.00010989,2]
[335634870,1724395848391,-500.0,0.00010989,2]
[335634872,1724395848400,-500.0,0.00010989,2]
[335634873,1724395848410,-500.0,0.00010989,2]
[335634875,1724395848420,-500.0,0.00010989,2]
[335634877,1724395848429,-500.0,0.00010989,2]
[335634879,1724395848439,-500.0,0.00010989,2]
[335634881,1724395848449,-500.0,0.00010989,2]
[335634883,1724395848460,-1175.28,0.00010989,2]
[335634885,1724395848469,-1175.28,0.00010989,2]
[335634886,1724395848478,-1175.28,0.00010989,2]
[335634888,1724395848488,-702.24,0.00010989,2]
[335634890,1724395848497,-702.24,0.00010989,2]
[335634892,1724395848507,-702.24,0.00010989,2]
[335634894,1724395848516,-500.0,0.00010989,2]
[335634895,1724395848525,-500.0,0.00010989,2]
[335634897,1724395848534,-500.0,0.00010989,2]
[335634899,1724395848543,-500.0,0.00010989,2]
[335634901,1724395848552,-500.0,0.00010989,2]
[335634903,1724395848561,-500.0,0.00010989,2]
[335634904,1724395848571,-500.0,0.00010989,2]
[335634906,1724395848580,-500.0,0.00010989,2]
[335634908,1724395848589,-500.0,0.00010989,2]
[335634910,1724395848598,-500.0,0.00010989,2]
[335634912,1724395848611,-500.0,0.00010989,2]
[335634914,1724395848620,-500.0,0.00010989,2]
[335634915,1724395848629,-500.0,0.00010989,2]
[335634917,1724395848638,-500.0,0.00010989,2]
[335634919,1724395848647,-500.0,0.00010989,2]
[335634921,1724395848656,-1585.13,0.00010989,2]
[335634923,1724395848665,-1585.13,0.00010989,2]
[335634925,1724395848676,-1585.13,0.00010989,2]
[335634926,1724395848685,-674.98,0.00010989,2]
[335634928,1724395848694,-674.98,0.00010989,2]
[335634930,1724395848703,-674.98,0.00010989,2]
[335634931,1724395848713,-1081.08,0.00010989,2]
[335634933,1724395848722,-1081.08,0.00010989,2]
[335634935,1724395848731,-1081.08,0.00010989,2]
[335634937,1724395848741,-500.0,0.00010989,2]